[Event "Israel National League 2024"]
[Site "Israel"]
[Date "2024.01.12"]
[Round "2.6"]
[White "Huzman, Alexander"]
[Black "Solomon, Asif"]
[Result "1-0"]
[ECO "E50"]
[WhiteElo "2534"]
[BlackElo "2242"]
[Annotator "TA"]
[PlyCount "149"]
[EventDate "2024.01.07"]
[EventType "team-tourn"]
[EventCountry "ISR"]
[SourceTitle "playchess.com"]
[Source "ChessBase"]
[SourceQuality "1"]
[TimeControl "40/5400+30:1800+30"]

{[%evp 10,149,15,-3,8,0,0,0,4,0,-1,0,0,0,0,0,0,-24,6,10,0,0,0,0,10,11,112,120,113,75,82,81,81,72,70,75,90,79,80,87,87,68,107,102,110,107,140,141,142,144,147,142,147,147,146,138,173,168,172,162,162,162,167,174,210,219,219,225,408,225,225,186,342,225,211,166,180,187,187,185,250,170,196,0,206,158,173,170,193,194,191,179,190,167,197,207,199,192,219,181,198,179,225,222,222,204,194,175,205,208,322,341,742,728,738,747,717,664,758,654,642,544,716,687,682,628,3008,2783,12823,2264,12841,12841,12836,12842,12842,12843,12842,12842,12845,12845,12847,12847]} 1. d4 {[%emt 0:00:14]} Nf6 {[%emt 0:00:07]} 2. Nf3 {[%emt 0:00:22]} d5 {[%emt 0:00:18]} 3. c4 {[%emt 0:00:20]} e6 {[%emt 0:00:03]} 4. Nc3 {[%emt 0:00:18]} Bb4 {[%emt 0:01:05]} 5. e3 {[%emt 0:01:37]} O-O {[%emt 0:00:24]} 6. Be2 {[%emt 0:00:02]} b6 {[%emt 0:06:04] is now more promising than 6...c5. E50: Nimzo-Indian: Rubinstein: 4...0-0 5 Nf3.} 7. O-O {[%emt 0:02:27]} Bb7 {[%emt 0:05:11]} 8. cxd5 {[%emt 0:02:45]} exd5 {[%emt 0:00:25] The position is equal.} 9. a3 {[%emt 0:00:08][%cal Ba2a3,Ba3a4,Ba4b5][%mdl 32]} Bd6 {[%emt 0:04:07]} 10. b4 {[%emt 0:00:21]} Nbd7 {[%emt 0:07:18]} 11. Qb3 {[%emt 0:03:09]} c6 {[%emt 0:03:10]} 12. a4 {[%emt 0:05:47]} a6 {[%emt 0:06:46] [#]} 13. Ba3 $146 {[%emt 0:09:24]} ({Predecessor:} 13. a5 b5 14. Bd3 Qe7 15. Rb1 Ne4 {½-½ Baraeva,M (2062)-Orekhov,E (2469) Nizhnij Tagil Stone Flower-A 2009 (14)}) 13... Qe7 {[%emt 0:01:56]} (13... b5 $5 {[%cal Rd7b6]}) 14. b5 {[%emt 0:12:13]} axb5 {[%emt 0:12:38]} 15. Bxd6 {[%emt 0:00:20]} Qxd6 {[%emt 0:00:04]} 16. axb5 {[%emt 0:00:08]} Rxa1 {[%emt 0:09:40]} 17. Rxa1 {[%emt 0:00:19]} Ra8 {[%emt 0:00:05]} (17... c5 $1 $11) 18. Rxa8+ $16 {[%emt 0:06:38]} Bxa8 {[%emt 0:00:05]} 19. bxc6 {[%emt 0:00:15]} Bxc6 {[%emt 0:02:11]} 20. Bd3 {[%emt 0:04:05]} Bb7 {[%emt 0:04:52]} 21. h3 {[%emt 0:01:05]} g6 {[%emt 0:03:09]} 22. Ne1 {[%emt 0:03:46][%cal Bf3e1,Be1c2,Bc2a3,Ba3b5,Bb5d6][%mdl 32]} Nf8 {[%emt 0:02:07]} 23. Nc2 {[%emt 0:00:40]} Kg7 {[%emt 0:02:34]} 24. Qb4 {[%emt 0:01:30]} Qc7 {[%emt 0:10:09]} 25. Na3 {[%emt 0:00:23]} Ne6 {[%emt 0:04:01]} 26. Nab5 {[%emt 0:01:25]} Qc6 {[%emt 0:02:16]} 27. Qd6 {[%emt 0:10:12]} Qxd6 {[%emt 0:03:25]} 28. Nxd6 {[%emt 0:00:40]} Bc6 {[%emt 0:00:07] [#]} 29. Nc8 $1 {[%emt 0:00:40] White has more active pieces.} Nc7 {[%emt 0:03:06]} 30. Nxb6 {[%emt 0:02:07]} Nd7 {[%emt 0:00:20]} 31. Nxd7 {[%emt 0:03:27]} Bxd7 {[%emt 0:00:02][%mdl 4096] Endgame KBN-KBN} 32. Bc2 {[%emt 0:00:09]} f5 {[%emt 0:01:30]} 33. Bb3 {[%emt 0:00:33]} Bc6 {[%emt 0:00:53]} 34. f3 {[%emt 0:07:09]} Kf6 {[%emt 0:00:53]} 35. Kf2 {[%emt 0:00:09]} Ke7 {[%emt 0:00:24]} 36. g4 {[%emt 0:01:02]} fxg4 {[%emt 0:00:54]} 37. hxg4 {[%emt 0:00:15]} Kf6 {[%emt 0:01:09]} 38. Kg3 {[%emt 0:03:18] Strongly threatening e4.} h6 $2 {[%emt 0:00:15]} (38... Bb7 39. Kh3 Kg5) 39. Ba2 {[%emt 0:02:01]} (39. e4 $142) 39... Bb7 $18 {[%emt 0:01:41]} 40. Kh4 {[%emt 0:01:47]} Bc6 $2 {[%emt 0:00:51]} (40... g5+ 41. Kg3 Ke7) 41. Bb3 {[%emt 0:31:48] Black must now prevent e4.} Bb7 {[%emt 0:31:57]} 42. Na2 {[%emt 0:03:16]} Ba6 {[%emt 0:00:00]} 43. Kg3 {[%emt 0:00:00]} Bb7 {[%emt 0:00:00]} 44. Nb4 {[%emt 0:00:00]} Ke7 {[%emt 0:00:00]} (44... g5 {is a better defense.} 45. Kf2 Ke7) 45. Nd3 {[%emt 0:00:00]} Bc6 {[%emt 0:00:00]} 46. Nb4 {[%emt 0:00:00]} Bb7 {[%emt 0:00:00]} 47. Bc2 {[%emt 0:00:00]} Kf6 {[%emt 0:00:00]} 48. Ba4 {[%emt 0:00:00]} Na8 {[%emt 0:00:00] [#]} 49. Nd3 $1 {[%emt 0:00:00]} Nb6 {[%emt 0:00:00]} 50. Bb5 {[%emt 0:00:00]} Nc8 {[%emt 0:00:00]} 51. Nc5 {[%emt 0:00:00]} Ba8 {[%emt 0:00:00]} 52. Nd7+ {[%emt 0:00:00]} Ke6 {[%emt 0:00:00]} 53. Ne5 {[%emt 0:00:00]} Kf6 {[%emt 0:00:00]} 54. Bd3 {[%emt 0:00:00]} Ne7 {[%emt 0:00:00]} 55. Bc2 {[%emt 0:00:00]} Bb7 {[%emt 0:00:00]} (55... g5 $142 56. Kf2 Nc6) 56. Nd7+ {[%emt 0:00:00]} Kg7 {[%emt 0:01:40]} 57. Bb3 {[%emt 0:04:15]} Bc6 {[%emt 0:00:33]} 58. Nc5 {[%emt 0:00:38]} Kf6 {[%emt 0:01:37]} 59. e4 {[%emt 0:01:16]} dxe4 {[%emt 0:01:50]} (59... h5 {was called for.} 60. Kh4 dxe4) 60. fxe4 {[%emt 0:00:03][%cal Bf3e4,Be4e5][%mdl 32] Hoping for e5+.} h5 $2 {[%emt 0:01:08]} (60... g5 61. Kf2 Ng6 62. e5+ Nxe5) 61. e5+ {[%emt 0:01:37] White is clearly winning.} Kg5 {[%emt 0:00:18]} 62. Ne6+ {[%emt 0:01:49]} Kh6 {[%emt 0:00:01]} 63. g5+ {[%emt 0:00:13]} Kh7 {[%emt 0:00:01]} 64. Bc2 {[%emt 0:00:07] Repels Be4} Kg8 {[%emt 0:02:38]} 65. Nf4 {[%emt 0:00:09]} Kf7 {[%emt 0:00:13] Wards off d5} 66. Kf2 {[%emt 0:01:15]} Bb7 {[%emt 0:01:02]} 67. Bb3+ {[%emt 0:00:30]} Kg7 {[%emt 0:01:33]} 68. d5 {[%emt 0:00:25][%cal Bd4d5,Bd5d6,Bd6d7][%mdl 32]} Nf5 {[%emt 0:00:50]} 69. Ba4 {[%emt 0:01:32]} (69. d6 $142 Bc6 70. Be6) 69... Nd4 {[%emt 0:01:46]} 70. d6 {[%emt 0:01:30] White wants to mate with d7.} Kf7 {[%emt 0:00:42]} 71. d7 {[%emt 0:00:39]} Ke7 {[%emt 0:00:06]} 72. Nxg6+ {[%emt 0:00:05]} Kd8 {[%emt 0:00:06]} 73. Nf4 {[%emt 0:00:07]} Ke7 {[%emt 0:01:56]} 74. g6 {[%emt 0:00:20][%cal Bg5g6,Bg6g7][%mdl 32]} Bc6 {[%emt 0:00:45]} 75. g7 {[%emt 0:00:24] Weighted Error Value: White=0.16 (very precise) /Black=0.22 (precise)} 1-0

[Event "Israel National League 2024"]
[Site "Israel"]
[Date "2024.01.12"]
[Round "2.7"]
[White "Greenfeld, Alon"]
[Black "Kochavi, Ori"]
[Result "1-0"]
[ECO "E20"]
[WhiteElo "2455"]
[BlackElo "2428"]
[Annotator "RC"]
[PlyCount "81"]
[EventDate "2024.01.07"]
[EventType "team-tourn"]
[EventCountry "ISR"]
[SourceTitle "playchess.com"]
[Source "ChessBase"]
[SourceQuality "1"]
[TimeControl "40/5400+30:1800+30"]

1. d4 {[%emt 0:00:32]} Nf6 {[%emt 0:00:06]} 2. Nf3 {[%emt 0:00:58]} e6 {[%emt 0:00:57]} 3. c4 {[%emt 0:00:37]} c5 {[%emt 0:00:47]} 4. Nc3 {[%emt 0:12:16]} cxd4 {[%emt 0:00:27]} 5. Nxd4 {[%emt 0:00:06]} Bb4 {[%emt 0:04:06]} 6. g3 {[%emt 0:00:54]} Ne4 {[%emt 0:00:24]} 7. Qd3 {[%emt 0:02:02]} Bxc3+ {[%emt 0:04:14]} 8. bxc3 {[%emt 0:00:07]} Nc5 {[%emt 0:00:01]} 9. Qf3 {[%emt 0:05:12]} d6 {[%emt 0:18:42]} 10. Bg2 {[%emt 0:05:52]} e5 {[%emt 0:07:10]} 11. Nb3 {[%emt 0:03:52]} Nba6 {[%emt 0:01:49]} 12. Ba3 {[%emt 0:07:49]} Qc7 {[%emt 0:03:38]} 13. Rd1 {[%emt 0:07:34]} Be6 {[%emt 0:05:53]} 14. Nxc5 {[%emt 0:03:32]} Nxc5 {[%emt 0:01:03]} 15. Bxc5 {[%emt 0:00:14]} Qxc5 {[%emt 0:00:05]} 16. Qxb7 {[%emt 0:00:12]} Rc8 {[%emt 0:07:36]} 17. Qa6 {[%emt 0:19:09]} Ke7 {[%emt 0:13:51]} 18. Bd5 {[%emt 0:01:44]} Bh3 {[%emt 0:00:49]} 19. Rb1 {[%emt 0:03:01]} Rb8 {[%emt 0:03:21]} 20. Rb7+ {[%emt 0:00:26]} Rxb7 {[%emt 0:01:03]} 21. Qxb7+ {[%emt 0:00:08]} Bd7 {[%emt 0:00:22]} 22. O-O {[%emt 0:01:42]} f5 {[%emt 0:03:29]} 23. Rb1 {[%emt 0:01:01]} Rc8 {[%emt 0:00:11]} 24. Qa6 {[%emt 0:02:54]} Kd8 {[%emt 0:06:26]} 25. Rb7 {[%emt 0:03:07]} Rc7 {[%emt 0:00:30]} 26. Rb8+ {[%emt 0:01:03]} Rc8 {[%emt 0:01:46]} 27. Qb7 {[%emt 0:01:26]} a5 {[%emt 0:01:19]} 28. Qb6+ {[%emt 0:03:02]} Qxb6 {[%emt 0:03:12]} 29. Rxb6 {[%emt 0:00:02]} Ke7 {[%emt 0:01:09]} 30. Rb7 {[%emt 0:00:15]} Kd8 {[%emt 0:03:46]} 31. f4 {[%emt 0:00:49]} Rc7 {[%emt 0:00:47]} 32. Rb8+ {[%emt 0:02:49]} Rc8 {[%emt 0:00:07]} 33. Rb6 {[%emt 0:00:19]} Ke7 {[%emt 0:00:01]} 34. Rb7 {[%emt 0:00:30]} h6 {[%emt 0:01:33]} 35. h4 {[%emt 0:00:17]} exf4 {[%emt 0:01:11]} 36. gxf4 {[%emt 0:00:08]} Rc5 {[%emt 0:00:01]} 37. Kf2 {[%emt 0:03:31]} Kd8 {[%emt 0:01:05]} 38. Rb8+ {[%emt 0:01:29]} Ke7 {[%emt 0:01:31]} 39. Ke3 {[%emt 0:01:20]} Bc8 {[%emt 0:00:24]} 40. Kd4 {[%emt 0:00:54]} Kd7 {[%emt 0:01:06]} 41. Bb7 {[%emt 0:38:05]} 1-0

[Event "Israel National League 2024"]
[Site "Israel"]
[Date "2024.01.12"]
[Round "2.8"]
[White "Ben Ari, Yannay"]
[Black "Dvoirys, Semen I."]
[Result "1/2-1/2"]
[ECO "B90"]
[WhiteElo "2417"]
[BlackElo "2466"]
[Annotator "TA"]
[PlyCount "100"]
[EventDate "2024.01.07"]
[EventType "team-tourn"]
[EventCountry "ISR"]
[SourceTitle "playchess.com"]
[Source "ChessBase"]
[SourceQuality "1"]
[TimeControl "40/5400+30:1800+30"]

{[%evp 17,100,31,34,0,27,-6,-11,1,44,40,47,42,55,26,20,-15,0,-15,0,-10,-6,-11,-14,-14,-14,-38,-17,-30,-31,-37,0,0,17,0,25,0,0,0,-14,-29,-29,-29,-18,-42,-29,-29,-19,-19,-19,-19,-19,-19,-19,-19,-7,-19,0,-19,0,0,0,-4,-12,-12,0,0,2,2,2,4,6,14,40,21,25,76,59,0,0,0,59,0,0,0,82]} 1. e4 {[%emt 0:00:30]} c5 {[%emt 0:00:09]} 2. Nf3 {[%emt 0:01:08]} d6 {[%emt 0:00:16]} 3. d4 {[%emt 0:00:17]} cxd4 {[%emt 0:00:04]} 4. Nxd4 {[%emt 0:00:06]} Nf6 {[%emt 0:00:02]} 5. Nc3 {[%emt 0:00:10]} a6 {[%emt 0:00:08]} 6. Be3 {[%emt 0:00:06]} e5 {[%emt 0:00:12]} 7. Nf3 {[%emt 0:00:08]} Qc7 {[%emt 0:03:06]} 8. a4 {[%emt 0:00:10]} Be7 {[%emt 0:00:16]} 9. Be2 {[%emt 0:00:15] The modern move.} b6 {[%emt 0:02:21]} 10. Qd3 {[%emt 0:12:32] B90: Sicilian Najdorf: Unusual White 6th moves, 6 Be3 Ng4 and 6 Be3 e5.} Bb7 {[%emt 0:05:21]} 11. Qc4 {[%emt 0:02:57]} Qxc4 {[%emt 0:01:08]} 12. Bxc4 {[%emt 0:02:00]} Nbd7 {[%emt 0:00:03]} 13. Nd2 {[%emt 0:10:29] [#]} O-O $146 {[%emt 0:01:37]} ({Predecessor:} 13... Rc8 14. f3 h6 15. Bb3 Bd8 16. Nc4 Ke7 17. O-O-O Bc7 18. Rd2 Rhd8 19. Rhd1 Nc5 20. Bxc5 bxc5 {½-½ Kazakos,E (2131)-Skaperdas,S (2050) GRE-chT 41st 2013 (1.3)}) 14. f3 {[%emt 0:01:25]} Rfc8 {[%emt 0:34:19]} 15. Bb3 {[%emt 0:13:07]} b5 {[%emt 0:01:36]} 16. Bg5 {[%emt 0:16:24]} h6 {[%emt 0:03:36]} 17. Bh4 {[%emt 0:00:20]} b4 {[%emt 0:12:41]} 18. Nd1 {[%emt 0:01:32]} d5 {[%emt 0:00:44]} 19. exd5 {[%emt 0:04:44]} Bxd5 {[%emt 0:01:57]} 20. Ne3 {[%emt 0:01:21] Black must now prevent Bxf6.} Bxb3 {[%emt 0:00:10]} 21. Nxb3 {[%emt 0:02:52] [#]} (21. cxb3 $5 Bc5 22. Ndc4 $15) 21... Ng4 $1 {[%emt 0:01:03][%mdl 64] Discovered Attack} 22. Nxg4 {[%emt 0:02:31]} Bxh4+ {[%emt 0:00:05]} 23. g3 {[%emt 0:00:04]} Be7 {[%emt 0:06:10]} (23... h5 $5 24. gxh4 hxg4 $15) 24. O-O-O {[%emt 0:00:36]} Rc7 {[%emt 0:04:45]} 25. Kb1 {[%emt 0:00:52]} Nb6 {[%emt 0:00:52]} 26. a5 {[%emt 0:02:25]} Nc4 {[%emt 0:00:06]} 27. Rhe1 {[%emt 0:00:31]} f6 {[%emt 0:00:14]} 28. Ne3 {[%emt 0:03:58]} Nxe3 {[%emt 0:01:44]} 29. Rxe3 {[%emt 0:00:01]} Kf7 {[%emt 0:00:20]} 30. g4 {[%emt 0:03:52]} h5 {[%emt 0:00:50]} 31. h3 {[%emt 0:00:20]} hxg4 {[%emt 0:00:46]} 32. hxg4 {[%emt 0:00:24]} Rh8 {[%emt 0:00:24]} 33. Re2 {[%emt 0:04:35]} Rh3 {[%emt 0:00:11]} 34. Rd3 {[%emt 0:03:39]} Rh1+ {[%emt 0:00:58]} 35. Ka2 {[%emt 0:00:02]} Rf1 {[%emt 0:00:12]} 36. Rg2 {[%emt 0:05:10]} Ke6 {[%emt 0:01:36]} 37. Rgd2 {[%emt 0:02:07]} Rc6 {[%emt 0:05:55]} 38. Re3 {[%emt 0:01:39] [#] aiming for Nd4+.} Kf7 {[%emt 0:01:22]} 39. Rd7 {[%emt 0:03:03]} Rxc2 {[%emt 0:01:38] And now ...Rff2 would win.} 40. Red3 {[%emt 0:01:23]} Rff2 {[%emt 0:00:45]} 41. Nd2 $1 {[%emt 0:02:05]} Ke6 {[%emt 0:09:21]} 42. Kb3 {[%emt 0:01:50]} Rc6 $132 {[%emt 0:00:55][%mdl 2048] Black is fighting back} 43. Rb7 {[%emt 0:04:43] Hoping for Rb6.} Bc5 {[%emt 0:10:23] Against Rb6} (43... Rd6 $2 44. Rxe7+ Kxe7 45. Rxd6 $18) 44. Ne4 {[%emt 0:04:15][%cal Ob7g7]} Rh2 {[%emt 0:00:37]} (44... Re2 {simplifies} 45. Nxc5+ Rxc5 46. Rb6+ Ke7) 45. Rdd7 {[%emt 0:13:12]} Rh3 $1 {[%emt 0:06:57]} 46. Nxc5+ {[%emt 0:04:02]} Rxc5 {[%emt 0:00:00]} 47. Re7+ {[%emt 0:01:47]} Kd5 $1 {[%emt 0:00:07]} 48. Red7+ {[%emt 0:00:13]} Ke6 {[%emt 0:00:31]} 49. Re7+ {[%emt 0:02:32][%mdl 1024] White has compensation.} Kd5 $1 {[%emt 0:00:02]} 50. Red7+ {[%emt 0:00:05]} Ke6 {[%emt 0:00:29] Weighted Error Value: White=0.10 (very precise) /Black=0.08 (flawless)} 1/2-1/2

[Event "Israel National League 2024"]
[Site "Israel"]
[Date "2024.01.12"]
[Round "2.9"]
[White "Kargin, Arseny"]
[Black "Iliaguev, Nisim"]
[Result "1-0"]
[ECO "B12"]
[WhiteElo "2377"]
[BlackElo "2399"]
[Annotator "RC"]
[PlyCount "41"]
[EventDate "2024.01.07"]
[EventType "team-tourn"]
[EventCountry "ISR"]
[SourceTitle "playchess.com"]
[Source "ChessBase"]
[SourceQuality "1"]
[TimeControl "40/5400+30:1800+30"]

1. e4 {[%emt 0:00:12]} c6 {[%emt 0:02:36]} 2. d4 {[%emt 0:00:15]} d5 {[%emt 0:00:05]} 3. e5 {[%emt 0:00:05]} Bf5 {[%emt 0:00:04]} 4. Nf3 {[%emt 0:00:06]} e6 {[%emt 0:00:25]} 5. Be2 {[%emt 0:00:53]} Ne7 {[%emt 0:02:26]} 6. O-O {[%emt 0:00:20]} h6 {[%emt 0:00:06]} 7. Nbd2 {[%emt 0:00:17]} Nd7 {[%emt 0:00:57]} 8. Nb3 {[%emt 0:00:20]} a6 {[%emt 0:05:27]} 9. Bd2 {[%emt 0:08:51]} Be4 {[%emt 0:09:46]} 10. Rc1 {[%emt 0:06:41]} Bxf3 {[%emt 0:29:17]} 11. Bxf3 {[%emt 0:00:28]} Nf5 {[%emt 0:00:19]} 12. c4 {[%emt 0:04:48]} a5 {[%emt 0:06:23]} 13. cxd5 {[%emt 0:11:12]} cxd5 {[%emt 0:02:40]} 14. Bxa5 {[%emt 0:12:29]} Rxa5 {[%emt 0:01:30]} 15. Nxa5 {[%emt 0:00:07]} Qxa5 {[%emt 0:00:04]} 16. Rc8+ {[%emt 0:00:08]} Ke7 {[%emt 0:00:03]} 17. Bg4 {[%emt 0:01:58]} g6 {[%emt 0:10:04]} 18. Bxf5 {[%emt 0:00:26]} gxf5 {[%emt 0:00:02]} 19. Qh5 {[%emt 0:01:58]} Qd2 {[%emt 0:00:00]} 20. Qh4+ {[%emt 0:06:15]} Qg5 {[%emt 0:00:00]} 21. Qh3 {[%emt 0:00:08]} 1-0

[Event "Israel National League 2024"]
[Site "Israel"]
[Date "2024.01.12"]
[Round "2.10"]
[White "Karp, Ilya"]
[Black "Khmelniker, Ilya"]
[Result "1-0"]
[ECO "C79"]
[WhiteElo "2382"]
[BlackElo "2469"]
[Annotator "TA"]
[PlyCount "73"]
[EventDate "2024.01.07"]
[EventType "team-tourn"]
[EventCountry "ISR"]
[SourceTitle "playchess.com"]
[Source "ChessBase"]
[SourceQuality "1"]
[TimeControl "40/5400+30:1800+30"]

{[%evp 15,73,25,33,28,37,45,40,20,40,43,45,35,42,43,58,48,54,58,133,82,120,121,121,91,110,100,83,111,114,127,170,188,242,123,143,133,141,110,211,222,203,212,243,237,218,228,222,222,220,222,172,146,391,400,387,391,383,381,623,610]} 1. e4 {[%emt 0:00:04]} e5 {[%emt 0:00:05]} 2. Nf3 {[%emt 0:00:10]} Nc6 {[%emt 0:00:05]} 3. Bb5 {[%emt 0:00:06]} g6 {[%emt 0:00:38]} 4. c3 {[%emt 0:01:25]} d6 {[%emt 0:00:06]} 5. d4 {[%emt 0:00:25]} Bd7 {[%emt 0:00:05]} 6. O-O {[%emt 0:00:28]} Bg7 {[%emt 0:00:15]} 7. Re1 {[%emt 0:02:17]} a6 {[%emt 0:07:34]} 8. Ba4 {[%emt 0:00:28]} Nf6 {[%emt 0:03:01]} 9. d5 {[%emt 0:02:59] 9.h3 is setting a new trend. C79: Ruy Lopez: Steinitz-type lines with 3...a6 4 Ba4 Nf6 5 0-0 d6.} Ne7 {[%emt 0:00:18]} 10. Bxd7+ {[%emt 0:01:09]} Nxd7 {[%emt 0:01:42]} 11. Be3 {[%emt 0:03:24] White is slightly better.} h6 {[%emt 0:02:53]} 12. Nfd2 {[%emt 0:04:50]} f5 {[%emt 0:12:49] ...f4 is the strong threat.} 13. f3 $1 {[%emt 0:00:24]} O-O {[%emt 0:02:27]} 14. c4 {[%emt 0:00:16]} Nc5 {[%emt 0:09:22]} 15. Qc2 {[%emt 0:16:37] Repels Nd3} a5 {[%emt 0:00:45]} 16. Nc3 {[%emt 0:03:07] [#]} c6 $146 {[%emt 0:03:19]} (16... Nd7 $14) ({Predecessor:} 16... Qd7 17. b3 f4 18. Bf2 g5 19. a3 Na6 20. Rab1 Rf6 21. b4 axb4 22. axb4 Rg6 {1-0 Vajda,S (2352)-Halak,M (2253) Budapest Duna op 2015 (2)}) 17. a3 {[%emt 0:06:24]} (17. Bxc5 $142 dxc5 18. Rad1) 17... cxd5 {[%emt 0:08:45]} 18. cxd5 {[%emt 0:02:50]} Rc8 {[%emt 0:00:04][%cal Ob7b5]} 19. b4 {[%emt 0:01:02]} Na6 {[%emt 0:06:24][%cal Oa6b4]} 20. Qb3 {[%emt 0:01:12]} axb4 {[%emt 0:07:48]} 21. axb4 {[%emt 0:00:38]} g5 {[%emt 0:00:06]} 22. Nb5 {[%emt 0:07:34]} Qd7 {[%emt 0:08:53]} 23. Na7 {[%emt 0:04:52]} Rce8 {[%emt 0:02:56]} (23... Rb8 $142 24. Nc6 Ra8 25. Nxe7+ Qxe7 26. exf5 Nc7) 24. Qa4 {[%emt 0:06:28]} (24. b5 $1 $18 {[%cal Rb5a6]} Nc7 25. b6) 24... Qxa4 {[%emt 0:04:17]} 25. Rxa4 {[%emt 0:00:02]} Nc7 {[%emt 0:00:00]} 26. Ra5 {[%emt 0:11:44][%cal Ba4a5,Ba5b5,Bb5b6][%mdl 32] White is more active.} g4 {[%emt 0:01:32]} (26... Rd8 $16 {might work better.}) 27. Rc1 $18 {[%emt 0:02:31]} Na6 {[%emt 0:00:18] [#]} 28. Rb5 $1 {[%emt 0:01:18]} gxf3 {[%emt 0:05:22]} 29. gxf3 {[%emt 0:00:17]} Rb8 {[%emt 0:00:41]} 30. Rb6 {[%emt 0:03:37]} Rfd8 {[%emt 0:00:58]} 31. Nc4 {[%emt 0:04:19]} Bf8 {[%emt 0:00:13]} 32. Na5 {[%emt 0:01:22]} (32. Nxd6 Nxd5 33. exd5 Bxd6 $11) (32. Rxd6 $6 Rxd6 33. Nxd6 fxe4 $16) 32... Rd7 {[%emt 0:01:25]} 33. Rc4 {[%emt 0:00:31]} Nc7 $2 {[%emt 0:01:32] [#] This move loses the game for Black.} (33... h5 $16 34. Kh1 h4) 34. N7c6 $1 {[%emt 0:01:44][%mdl 512]} bxc6 {[%emt 0:00:12]} (34... Nxc6 $2 35. dxc6 (35. Nxc6 Ra8 $16) 35... Rg7+ 36. Kh1 $18) 35. Rxb8 {[%emt 0:00:05]} cxd5 {[%emt 0:00:06]} 36. exd5 {[%emt 0:00:39]} Nexd5 $2 {[%emt 0:05:28]} (36... Na6) 37. Bxh6 {[%emt 0:01:11] Weighted Error Value: White=0.09 (flawless) /Black=0.34} 1-0

[Event "Israel National League 2024"]
[Site "Israel"]
[Date "2024.01.12"]
[Round "2.11"]
[White "Vydeslaver, Alik"]
[Black "Mordechai, Hanan"]
[Result "1/2-1/2"]
[ECO "E09"]
[WhiteElo "2373"]
[BlackElo "2347"]
[Annotator "RC"]
[PlyCount "48"]
[EventDate "2024.01.07"]
[EventType "team-tourn"]
[EventCountry "ISR"]
[SourceTitle "playchess.com"]
[Source "ChessBase"]
[SourceQuality "1"]
[TimeControl "40/5400+30:1800+30"]

1. Nf3 {[%emt 0:00:31]} d5 {[%emt 0:00:38]} 2. g3 {[%emt 0:00:16]} Nf6 {[%emt 0:01:27]} 3. Bg2 {[%emt 0:00:06]} e6 {[%emt 0:01:11]} 4. O-O {[%emt 0:01:19]} Be7 {[%emt 0:00:22]} 5. d4 {[%emt 0:00:57]} O-O {[%emt 0:00:11]} 6. c4 {[%emt 0:00:04]} c6 {[%emt 0:03:34]} 7. Qc2 {[%emt 0:02:07]} Nbd7 {[%emt 0:01:57]} 8. b3 {[%emt 0:02:35]} b6 {[%emt 0:02:03]} 9. Bb2 {[%emt 0:00:54]} Bb7 {[%emt 0:00:29]} 10. Nbd2 {[%emt 0:03:47]} c5 {[%emt 0:12:32]} 11. cxd5 {[%emt 0:04:34]} Bxd5 {[%emt 0:13:25]} 12. e4 {[%emt 0:05:27]} Bb7 {[%emt 0:00:07]} 13. Rac1 {[%emt 0:04:38]} Rc8 {[%emt 0:03:20]} 14. Qb1 {[%emt 0:19:11]} cxd4 {[%emt 0:02:44]} 15. Nxd4 {[%emt 0:12:20]} Rxc1 {[%emt 0:08:09]} 16. Rxc1 {[%emt 0:00:07]} Qa8 {[%emt 0:00:20]} 17. f3 {[%emt 0:08:29]} Rd8 {[%emt 0:10:03]} 18. Nc4 {[%emt 0:04:08]} Bc5 {[%emt 0:07:10]} 19. Kh1 {[%emt 0:00:24]} Nb8 {[%emt 0:03:16]} 20. Rd1 {[%emt 0:04:29]} Nc6 {[%emt 0:01:17]} 21. Nxc6 {[%emt 0:01:35]} Bxc6 {[%emt 0:00:16]} 22. Ne5 {[%emt 0:02:11]} Bb7 {[%emt 0:01:12]} 23. Rxd8+ {[%emt 0:00:33]} Qxd8 {[%emt 0:00:02]} 24. Qd3 {[%emt 0:00:07]} Qxd3 {[%emt 0:03:40]} 1/2-1/2

[Event "Israel National League 2024"]
[Site "Israel"]
[Date "2024.01.12"]
[Round "2.12"]
[White "Uritsky, Yonathan"]
[Black "Pasman, Michael"]
[Result "0-1"]
[ECO "B12"]
[WhiteElo "2097"]
[BlackElo "2341"]
[Annotator "RC"]
[PlyCount "54"]
[EventDate "2024.01.07"]
[EventType "team-tourn"]
[EventCountry "ISR"]
[SourceTitle "playchess.com"]
[Source "ChessBase"]
[SourceQuality "1"]
[TimeControl "40/5400+30:1800+30"]

1. e4 {[%emt 0:00:18]} c6 {[%emt 0:00:04]} 2. d4 {[%emt 0:00:18]} d5 {[%emt 0:00:04]} 3. e5 {[%emt 0:00:15]} Bf5 {[%emt 0:00:06]} 4. h4 {[%emt 0:00:32]} h6 {[%emt 0:00:45]} 5. g4 {[%emt 0:00:18]} Be4 {[%emt 0:00:07]} 6. f3 {[%emt 0:00:10]} Bh7 {[%emt 0:00:04]} 7. e6 {[%emt 0:03:49]} Qd6 {[%emt 0:00:07]} 8. exf7+ {[%emt 0:00:05]} Kxf7 {[%emt 0:00:02]} 9. Bd3 {[%emt 0:03:56]} Nf6 {[%emt 0:09:35]} 10. Ne2 {[%emt 0:03:27]} Nbd7 {[%emt 0:01:09]} 11. O-O {[%emt 0:12:59]} Bxd3 {[%emt 0:14:46]} 12. Qxd3 {[%emt 0:01:16]} e5 {[%emt 0:00:06]} 13. f4 {[%emt 1:09:37]} exd4 {[%emt 0:01:22]} 14. g5 {[%emt 0:00:00]} Ne4 {[%emt 0:02:32]} 15. Nxd4 {[%emt 0:00:00]} Kg8 {[%emt 0:05:48]} 16. Nd2 {[%emt 0:00:00]} Re8 {[%emt 0:07:48]} 17. Nf5 {[%emt 0:00:00]} Qc5+ {[%emt 0:26:15]} 18. Kg2 {[%emt 0:00:00]} hxg5 {[%emt 0:00:04]} 19. Nb3 {[%emt 0:00:00]} Qc4 {[%emt 0:02:07]} 20. hxg5 {[%emt 0:00:00]} g6 {[%emt 0:00:59]} 21. Ng3 {[%emt 0:00:00]} Qxd3 {[%emt 0:03:37]} 22. cxd3 {[%emt 0:00:00]} Nxg3 {[%emt 0:00:35]} 23. Kxg3 {[%emt 0:00:00]} Nc5 {[%emt 0:00:23]} 24. Rf3 {[%emt 0:00:00]} Nxb3 {[%emt 0:02:27]} 25. axb3 {[%emt 0:00:00]} Rh1 {[%emt 0:00:15]} 26. Rf2 {[%emt 0:00:00]} Ree1 {[%emt 0:03:05]} 27. Rc2 {[%emt 0:00:00]} a5 {[%emt 0:01:36]} 0-1